fUSD/lending_fUSD_20250328
["ID","MTS","AMOUNT","RATE_DAILY","PERIOD"]
[356771632,1743149438099,-643.0,0.00031416,2]
[356771633,1743149438108,-1052.6706916,0.00031416,2]
[356771650,1743149439959,-983.3293084,0.00031416,2]
[356771651,1743149439969,-1055.101,0.00031416,2]
[356771652,1743149439978,-571.0,0.00031416,2]
[356771653,1743149439987,-1420.0,0.00031416,2]
[356771654,1743149439997,-26.00149166,0.00031416,2]
[356771655,1743149440332,-441.94,0.00031416,2]
[356771656,1743149440444,-38.66950834,0.00031416,2]
[356771657,1743149440454,-788.0,0.00031416,2]
[356771658,1743149440463,-2.88193492,0.00031521,2]
[356771688,1743149442901,-225.11103736,0.00031521,2]
[356771689,1743149442912,-64055.17574175,0.0003154,2]
[356771690,1743149442921,-200.0,0.0003154,2]
[356771691,1743149442931,-500.0,0.0003172,2]
[356771692,1743149442940,-501.56299735,0.000318,2]
[356771693,1743149442950,-200.0,0.00031855,2]
[356771694,1743149442959,-200.0,0.00032174,2]
[356771695,1743149442968,-2000.0,0.000323,2]
[356771696,1743149442978,-200.0,0.00032496,2]
[356771697,1743149442987,-3002.26328539,0.0003259,120]
[356771698,1743149442996,-7500.0,0.0003259,30]
[356771699,1743149443006,-7500.0,0.0003259,30]
[356771700,1743149443015,-7410.34,0.0003259,30]
[356771701,1743149443024,-500.0,0.00032625,2]
[356771702,1743149443034,-487.47,0.00032646,2]
[356771703,1743149443044,-158.5,0.00032646,2]
[356771704,1743149443054,-200.0,0.00032821,2]
[356771705,1743149443063,-450.0,0.00033,2]
[356771706,1743149443073,-500.0,0.00035,2]
[356771707,1743149443082,-2000.0,0.000351,2]
[356771708,1743149443092,-630.16,0.00035382,2]
[356771709,1743149443103,-200.0,0.00035942,2]
[356771710,1743149443112,-4181.0,0.00036,5]
[356771711,1743149443121,-1000.0,0.00036624,2]
[356771712,1743149443130,-150.0,0.00036829,7]
[356771713,1743149443141,-1206.51977674,0.000369,2]
[356771714,1743149443150,-550.0,0.00037,2]
[356771715,1743149443161,-283.63,0.00037107,120]
[356771716,1743149443171,-156.39,0.00037382,2]
[356771717,1743149443181,-161.35,0.0003749,120]
[356771718,1743149443190,-630.16,0.00037645,2]
[356771719,1743149443201,-2000.0,0.000378,2]
[356771720,1743149443210,-250.0,0.00037805,2]
[356771721,1743149443219,-170.53526247,0.00038,2]
[356771722,1743149443228,-177.06653207,0.0003812,15]
[356771723,1743149443237,-190.1941131,0.0003812,15]
[356771724,1743149443247,-1206.51977672,0.00038122,2]
[356771725,1743149443256,-420.09,0.00038428,2]
[356771726,1743149443268,-23900.0,0.00038428,2]
[356771727,1743149443280,-487.47,0.00038443,2]
[356771728,1743149443292,-158.5,0.00038443,2]
[356771729,1743149443302,-155.89,0.00038579,2]
[356771730,1743149443312,-244.85,0.00038839,2]
[356771731,1743149443322,-600.0,0.00039,2]
[356771732,1743149443331,-1206.51977672,0.00039344,2]
[356771733,1743149443340,-296.0,0.000394,2]
[356771734,1743149443349,-630.16,0.00039909,2]
[356771735,1743149443359,-8104.93876882,0.0004,15]
[356771736,1743149443369,-150.0,0.00040143,2]
[356771737,1743149443379,-2000.0,0.000405,2]
[356771738,1743149443389,-684.8381,0.000405,30]
[356771739,1743149443400,-155.89,0.00040537,2]
[356771740,1743149443409,-1206.51977672,0.00040566,15]
[356771741,1743149443418,-650.0,0.00041,2]
[356771742,1743149443428,-181.37531856,0.00041201,2]
[356771743,1743149443441,-818.62468144,0.00041201,2]
[356771744,1743149443451,-148.63421856,0.00041513,2]
[356771782,1743149443953,-1.36578144,0.00041513,2]
[356771783,1743149443962,-278.57519422,0.00041788,15]
[356771797,1743149445867,-898.41937132,0.00041788,15]
[356771798,1743149445975,-29.52521118,0.00041788,15]
[356771799,1743149445985,-500.0,0.000419,2]
[356771800,1743149445995,-1000.0,0.000419,2]
[356771801,1743149446004,-2500.0,0.000419,2]
[356771802,1743149446014,-9019.79802785,0.00042,5]
[356771829,1743149528302,190.160512,7.945e-05,2]
[356771839,1743150327640,10313.90399664,0.00032598,30]
[356771880,1743150477576,549.35725585,0.0001,2]
[356771893,1743150632014,-239.7243,0.000149,2]
[356771894,1743150632027,-445.37899647,0.00015,2]
[356771895,1743150632123,-1962.78066715,0.00015,2]
[356771897,1743150632231,-492.56648881,0.00015,2]
[356771898,1743150632285,-11242.22828578,0.00015,2]
[356771899,1743150632393,-1773.5918202,0.00015,2]
[356771922,1743150637866,-1023.0136133,0.00015,2]
[356771923,1743150638004,-10357.0,0.00015,2]
[356771924,1743150638048,-817579.26401438,0.00015,2]
[356771925,1743150638143,-3465.21026653,0.00015,2]
[356771972,1743150640220,-1282.3266165,0.00015,2]
[356771973,1743150640231,-1326.9,0.00015,2]
[356771991,1743150643115,-413.4868,0.00015,2]
[356771992,1743150643172,-373.5132,0.00015,2]
[356772001,1743150644096,-2289.54859751,0.00015,2]
[356772002,1743150644114,-925.98705281,0.00015,2]
[356772006,1743150645973,-395.21250451,0.00015,2]
[356772007,1743150646084,-921.61078156,0.00015,2]
[356772008,1743150646095,-1109.10878638,0.00015,2]
[356772009,1743150646245,-137516.17800849,0.00015,2]
[356772010,1743150646255,-150.66,0.0002,2]
[356772011,1743150646265,-150.66,0.0002,2]
[356772012,1743150646274,-150.66,0.0002,2]
[356772013,1743150646284,-161.83175448,0.000238,2]
[356772014,1743150646293,-948.28322664,0.000239,2]
[356772016,1743150646302,-948.28322655,0.00026438,2]
[356772017,1743150646311,-158.2,0.00026849,2]
[356772019,1743150646322,-948.28322655,0.00028975,2]
[356772020,1743150646331,-65015.56888294,0.000309,2]
[356772021,1743150646340,-948.28322655,0.00031513,2]
[356772022,1743150646350,-16727.8799072,0.0003229,2]
[356772024,1743150646358,-2167.83705925,0.0003229,2]
[356772026,1743150646368,-3135.82,0.0003229,10]
[356772028,1743150646377,-2000.0,0.000323,2]
[356772030,1743150646386,-150.66,0.00032588,2]
[356772031,1743150646395,-2688.81584065,0.00032598,2]
[356772033,1743150646404,-150.47129518,0.00032598,2]
[356772035,1743150646413,-247.75566283,0.00032598,2]
[356772037,1743150646422,-163.5108954,0.00032598,2]
[356772039,1743150646431,-1254.74567247,0.00032598,2]
[356772041,1743150646441,-7676.86674944,0.00032598,2]
[356772043,1743150646450,-1035.69617798,0.00032598,2]
[356772045,1743150646459,-591.50889516,0.00032598,2]
[356772047,1743150646469,-9188.30664343,0.00032598,2]
[356772049,1743150646478,-1304.3665488,0.00032598,2]
[356772051,1743150646487,-3401.97224495,0.00032598,2]
[356772053,1743150646496,-39461.65921626,0.00032598,2]
[356772055,1743150646505,-407.67608088,0.00032598,3]
[356772057,1743150646514,-948.28322655,0.00034051,2]
[356772059,1743150646523,-863.36264082,0.00035,2]
[356772061,1743150646532,-2167.83705925,0.0003509,2]
[356772063,1743150646541,-2000.0,0.000351,2]
[356772065,1743150646551,-948.28322655,0.00036588,2]
[356772067,1743150646560,-150.0,0.00037363,7]
[356772069,1743150646571,-1359.0,0.000378,2]
[356772071,1743150646581,-6503.51117775,0.00038318,3]
[356772073,1743150646590,-9522.4834,0.00038328,2]
[356772075,1743150646599,-1000.0,0.000385,40]
[356772076,1743150646609,-2167.83705925,0.00039116,3]
[356772078,1743150646619,-948.28322655,0.00039126,2]
[356772080,1743150646628,-209.0,0.0004,2]
[356772082,1743150646637,-1000.0,0.0004,5]
[356772084,1743150646646,-535.63,0.00040254,2]
[356772086,1743150646656,-1359.7417137,0.000405,2]
[356772088,1743150646665,-155.0,0.00041,90]
[356772090,1743150646673,-948.28322655,0.00041664,15]
[356772092,1743150646682,-2167.83705925,0.0004189,3]
[356772094,1743150646691,-500.0,0.000419,2]
[356772096,1743150646700,-374.38,0.000419,62]
[356772097,1743150646710,-19510.5335332,0.0004198,3]
[356772098,1743150646719,-150.66,0.0004198,2]
[356772099,1743150646729,-33455.7598144,0.0004199,3]
[356772100,1743150646738,-31140.55493118,0.0004199,3]
[356772101,1743150646834,-10048.34919452,0.0004199,3]
[356772102,1743150646869,-508.459606,0.0004199,14]
[356772103,1743150646878,-508.459606,0.0004199,14]
[356772104,1743150646889,-76939.89285799,0.00042,5]
[356772105,1743150646899,-507.471,0.00042,120]
[356772106,1743150646909,-151.0,0.00042,14]
[356772107,1743150646919,-151.0,0.00042,14]
[356772108,1743150646928,-151.0,0.00042,14]
[356772109,1743150646938,-508.459606,0.00042,14]
[356772110,1743150646947,-508.459606,0.00042,14]
[356772111,1743150646957,-161.35,0.0004214,120]
[356772112,1743150646966,-16727.8799072,0.00042163,3]
[356772113,1743150646975,-1000.0,0.00042231,2]
[356772114,1743150646984,-535.63,0.00042518,2]
[356772115,1743150646994,-23900.0,0.00042582,2]
[356772116,1743150647003,-344.07,0.00042685,30]
[356772117,1743150647012,-155.89,0.00042731,2]
[356772118,1743150647025,-152.93791343,0.00042986,120]
[356772119,1743150647034,-700.0,0.00043,2]
[356772120,1743150647043,-244.84,0.00043077,2]
[356772121,1743150647053,-152.0,0.00043135,3]
[356772122,1743150647063,-350.07,0.00043173,2]
[356772123,1743150647075,-250.0,0.00043173,2]
[356772124,1743150647084,-1952.98,0.00043321,2]
[356772125,1743150647093,-152.93791343,0.00043452,120]
[356772126,1743150647102,-639.15155099,0.000438,15]
[356772127,1743150647114,-161.5085555,0.0004381,4]
[356772128,1743150647122,-150.66,0.0004388,2]
[356772129,1743150647132,-29334.23416217,0.0004389,3]
[356772142,1743151067918,-6500.5109,0.000149,2]
[356772143,1743151209044,2387981.26105295,0.00032604,60]
[356772153,1743151718558,-4615.00474596,0.000149,2]
[356772675,1743151832108,-1047.99525404,0.000149,2]
[356772676,1743151832118,-250.0,0.00025,2]
[356772677,1743151832128,-422.31,0.00026849,2]
[356772678,1743151832138,-292.61475796,0.00027,2]
[356772699,1743151838105,-7.38524204,0.00027,2]
[356772700,1743151838114,-350.0,0.00029,2]
[356772701,1743151838123,-400.0,0.00031,2]
[356772702,1743151838133,-422.31,0.00032646,2]
[356772703,1743151838143,-450.0,0.00033,2]
[356772704,1743151838152,-150.0,0.00034111,2]
[356772705,1743151838161,-150.0,0.00034111,2]
[356772706,1743151838170,-150.0,0.00034548,10]
[356772707,1743151838179,-500.0,0.00035,2]
[356772708,1743151838189,-550.0,0.00037,2]
[356772709,1743151838198,-150.0,0.00037111,2]
[356772710,1743151838207,-422.31,0.00038443,2]
[356772711,1743151838217,-600.0,0.00039,2]
[356772712,1743151838227,-482.06,0.00040629,2]
[356772713,1743151838237,-650.0,0.00041,2]
[356772714,1743151838247,-150.0,0.00042319,7]
[356772715,1743151838256,-291.72,0.0004238,2]
[356772716,1743151838265,-1000.0,0.0004272,2]
[356772717,1743151838274,-482.06,0.00042893,2]
[356772718,1743151838284,-700.0,0.00043,2]
[356772719,1743151838293,-152.0,0.00043135,3]
[356772720,1743151838303,-299.504,0.00043135,66]
[356772721,1743151838313,-803.88168333,0.00043196,2]
[356772722,1743151838322,-2211.26017934,0.00043197,2]
[356772723,1743151838339,-263.0,0.00043197,2]
[356772748,1743151838844,-21425.73982066,0.00043197,2]
[356772749,1743151838854,-166.15503629,0.00043425,120]
[356772750,1743151838863,-300.2706,0.0004371,2]
[356772751,1743151838873,-155.89,0.00043747,2]
[356772752,1743151838882,-5000.0,0.000438,120]
[356772753,1743151838891,-166.15503629,0.00043808,120]
[356772754,1743151838901,-161.5085555,0.0004381,4]
[356772755,1743151838910,-1000.0,0.00043835,120]
[356772756,1743151838920,-1000.0,0.00043863,120]
[356772757,1743151838930,-1008.1771356,0.00043885,2]
[356772758,1743151838940,-1146.6021713,0.00043885,2]
[356772759,1743151838949,-1402.4582107,0.00043887,2]
[356772760,1743151838958,-1000.0,0.0004389,120]
[356772761,1743151838967,-988.70756277,0.00043917,120]
[356772762,1743151838976,-250.0,0.00043998,2]
[356772763,1743151838986,-3333.76232151,0.00044,7]
[356772764,1743151838995,-43353.808894,0.00044,3]
[356772765,1743151839005,-166.15503629,0.00044192,120]
[356772766,1743151839014,-158.5,0.00044239,2]
[356772767,1743151839024,-422.31,0.00044239,2]
[356772768,1743151839035,-438.25,0.00044329,30]
[356772769,1743151839044,-346.77,0.00044329,30]
[356772770,1743151839054,-438.71,0.00044329,30]
[356772771,1743151839063,-346.77,0.00044329,30]
[356772772,1743151839073,-346.77,0.00044329,30]
[356772773,1743151839082,-346.77,0.00044329,30]
[356772774,1743151839092,-346.77,0.00044329,30]
[356772775,1743151839101,-783.99,0.00044329,30]
[356772776,1743151839110,-975.0,0.00044571,30]
[356772777,1743151839120,-166.15503629,0.00044575,120]
[356772778,1743151839130,-500.0,0.000449,2]
[356772779,1743151839140,-576.49017625,0.000449,15]
[356772780,1743151839149,-166.15503629,0.00044959,120]
[356772781,1743151839158,-23487.30572764,0.00045,45]
[356772787,1743151840306,-2208.75280564,0.00045,45]
[356772788,1743151840678,-10986.41424769,0.00045,45]
[356772849,1743151846226,-7563.12269681,0.00045,45]
[356772850,1743151846416,-3170.74472576,0.00045,45]
[356772851,1743151846439,-2583.65979646,0.00045,45]
[356772852,1743151846450,-2030.94323178,0.00045,120]
[356772853,1743151846460,-2500.0,0.00045005,2]
[356772854,1743151846469,-975.0,0.0004503,30]
[356772855,1743151846478,-32183.16204105,0.00045095,2]
[356772997,1743153032346,-250.0,0.00025,2]
[356772999,1743153032357,-158.57130425,0.00026749,2]
[356773000,1743153032368,-500.0,0.00026849,2]
[356773002,1743153032379,-408.77094746,0.00026849,2]
[356773004,1743153032391,-166.95,0.00026849,2]
[356773005,1743153032401,-300.0,0.00027,2]
[356773007,1743153032412,-350.0,0.00029,2]
[356773008,1743153032423,-5319.90151908,0.0003,2]
[356773009,1743153032503,-3327.91653694,0.0003,2]
[356773010,1743153032556,-738.53790114,0.0003,2]
[356773011,1743153032610,-2039.40212491,0.0003,2]
[356773017,1743153038242,-158.57130424,0.00029548,2]
[356773018,1743153038252,-37822.74186796,0.0003,2]
[356773019,1743153038264,-98820.93693976,0.0003,2]
[356773020,1743153038503,-871.7117907,0.0003,2]
[356773021,1743153038556,-333.14117778,0.0003,2]
[356773037,1743153043424,-56015.45393367,0.0003,2]
[356773038,1743153043434,-158.57130424,0.00032346,2]
[356773039,1743153043443,-814.5979171,0.00032446,2]
[356773040,1743153043453,-166.95,0.00032646,2]
[356773041,1743153043463,-161.9,0.000335,31]
[356773042,1743153043473,-1064.0,0.000335,2]
[356773043,1743153043483,-814.59791703,0.00034057,2]
[356773044,1743153043492,-381.12,0.00034057,2]
[356773045,1743153043502,-642.0,0.00034233,2]
[356773046,1743153043511,-1282.0,0.00034233,2]
[356773047,1743153043520,-2038.0,0.00034233,2]
[356773048,1743153043529,-572.0,0.00034233,2]
[356773049,1743153043539,-1422.0,0.00034233,2]
[356773050,1743153043548,-1274.0,0.00034233,2]
[356773051,1743153043558,-788.0,0.00034233,2]
[356773052,1743153043568,-907.0,0.00034233,2]
[356773053,1743153043578,-542.0,0.00034233,2]
[356773054,1743153043587,-1468.287,0.00034233,2]
[356773055,1743153043597,-4089.0,0.00034233,2]
[356773056,1743153043607,-151.0,0.00034233,2]
[356773057,1743153043616,-4000.657,0.00034233,2]
[356773058,1743153043626,-794.56493797,0.00034233,2]
[356773059,1743153043638,-221.43506203,0.00034233,2]
[356773060,1743153043647,-741.58819022,0.000348,3]
[356773061,1743153043658,-995.3076,0.000348,3]
[356773064,1743153044502,-3536.28,0.000348,3]
[356773065,1743153046375,-279.82420978,0.000348,3]
[356773066,1743153046385,-536.27981719,0.00035668,2]
[356773067,1743153046482,-278.31809984,0.00035668,2]
[356773068,1743153046492,-1001.0,0.000359,2]
[356773069,1743153046502,-5553.0,0.00036,5]
[356773070,1743153046511,-161.9,0.000365,31]
[356773071,1743153046521,-161.9,0.000365,31]
[356773072,1743153046530,-150.46515601,0.000372,103]
[356773073,1743153046540,-878.976,0.00037233,2]
[356773074,1743153046550,-151.0,0.00037233,2]
[356773075,1743153046560,-3945.0,0.00037233,2]
[356773076,1743153046570,-1015.0,0.00037233,2]
[356773077,1743153046580,-814.59791703,0.00037279,2]
[356773078,1743153046590,-166.95,0.00038443,2]
[356773079,1743153046599,-1000.0,0.000386,2]
[356773080,1743153046610,-814.59791703,0.0003889,2]
[356773081,1743153046619,-161.9,0.000395,31]
[356773082,1743153046628,-161.9,0.000395,31]
[356773083,1743153046638,-446.39,0.00040204,2]
[356773084,1743153046647,-814.59791703,0.000405,15]
[356773085,1743153046656,-517.3,0.00040552,2]
[356773086,1743153046666,-175.5,0.00040748,120]
[356773087,1743153046675,-1501.04200095,0.00041136,120]
[356773088,1743153046685,-2000.0,0.00041459,8]
[356773089,1743153046694,-1000.0,0.00041864,2]
[356773090,1743153046703,-1000.0,0.00041999,4]
[356773091,1743153046713,-428.884,0.00041999,63]
[356773092,1743153046723,-53836.55725485,0.00042,2]
[356773093,1743153046830,-530.78526584,0.00042,2]
[356773113,1743153748616,-158.45,0.00026849,2]
[356773114,1743153758441,-343.107,0.00036932,46]
[356773115,1743153758462,-56.893,0.00036932,2]
[356773125,1743154078151,1974.19900077,0.0001,2]
[356773128,1743154113578,-962.03281127,0.0001489,2]
[356773134,1743154138362,-917.96718873,0.0001489,2]
[356773136,1743154138391,-424.31726255,0.000149,2]
[356773976,1743154237394,-15.99273745,0.000149,2]
[356773978,1743154237404,-300.0,0.00014999,2]
[356773981,1743154237414,-150.0,0.00014999,2]
[356773983,1743154237424,-77392.85638975,0.00015,2]
[356773998,1743154237561,-1240.41034812,0.00015,2]
[356774046,1743154240036,-841.74332629,0.00015,2]
[356774047,1743154240050,-525.47595038,0.00015,2]
[356774048,1743154240063,-4234.01018547,0.00015,2]
[356774049,1743154240077,-341.342129,0.00015,2]
[356774050,1743154240096,-1280.8641545,0.00015,2]
[356774052,1743154240624,230.0,0.00025,60]
[356774053,1743154241126,-161.69221938,0.00015,2]
[356774069,1743154244846,-100000.0,0.00015,2]
[356774075,1743154245464,-4543.59585451,0.00015,2]
[356774076,1743154245476,-28431.84570476,0.00015,2]
[356774077,1743154245522,-142707.36176147,0.00015,2]
[356774078,1743154245531,-184255.15839787,0.00015,2]
[356774079,1743154245612,-439.31683772,0.00015,2]
[356774080,1743154245623,-102069.24718603,0.00015,2]
[356774081,1743154245652,-2429.83431461,0.00015,2]
[356774082,1743154245701,-100000.0,0.00015,2]
[356774083,1743154245864,-594.39914268,0.00015,2]
[356774091,1743154246509,-100000.0,0.00015,2]
[356774092,1743154247455,-100000.0,0.00015,2]
[356774093,1743154249523,-100000.0,0.00015,2]
[356774094,1743154250455,-152.37,0.00015,2]
[356774095,1743154252603,-100000.0,0.00015,2]
[356774096,1743154253414,-258.12366573,0.00015,2]
[356774098,1743154262641,-93000.0,0.00015,2]
[356774100,1743154265415,-212.98324344,0.00015,2]
[356774105,1743154289456,-150.0,0.00015,2]
[356774111,1743154339734,-229.87709353,0.0002361,7]
[356774112,1743154380679,-218.42002402,0.000149,2]
[356774113,1743154383143,-73.64517598,0.000149,2]
[356774114,1743154383172,-150.0,0.00014999,2]
[356774115,1743154383199,-26.35482402,0.00014999,2]
[356774118,1743154404661,-273.64517598,0.00014999,2]
[356774119,1743154404683,-19726.35482402,0.00015,2]
[356774120,1743154405573,-153.19309302,0.00015,2]
[356774121,1743154405813,-20000.0,0.00015,2]
[356774122,1743154406704,-20000.0,0.00015,2]
[356774123,1743154407427,-20000.0,0.00015,2]
[356774124,1743154408169,-155.426093,0.00015,2]
[356774127,1743154415748,-12000.0,0.00015,2]
[356774129,1743154416393,-170.02,0.00015,2]
[356774131,1743154422926,-150.0,0.0002361,7]
[356774132,1743154444293,-150.0,0.00015,2]
[356774133,1743154556477,-151.33,0.00015,2]
[356774136,1743154665163,-150.0,0.00014999,2]
[356774137,1743154665188,-1.33,0.00015,2]
[356774143,1743154717839,-178.05965058,0.00015,2]
[356774144,1743154746075,-150.0,0.00015,2]
[356774145,1743154781253,-155.76,0.00015,2]
[356774146,1743154801962,-150.0,0.00014999,2]
[356774147,1743154805346,-30.0,0.00014999,2]
[356774148,1743154805372,-120.0,0.00015,2]
[356774149,1743154811640,-250.01656051,0.00014999,2]
[356774150,1743154853665,-150.0,0.00022573,7]
[356774151,1743154869865,-252.8338836,0.00014999,2]
[356774152,1743154887720,-202.672,0.00014999,2]
[356774153,1743154922104,-159.79533431,0.00014999,2]
[356774154,1743154971979,-150.0,0.00014999,2]
[356774155,1743154982397,-150.24,0.00014999,2]
[356774156,1743154986084,-84.45878209,0.00014999,2]
[356774157,1743154986106,-38.36707793,0.00014999,2]
[356774158,1743154986129,-27.17413998,0.00014999,2]
[356774159,1743154997197,-122.82586002,0.00014999,2]
[356774160,1743154997220,-92.67951934,0.00014999,2]
[356774161,1743155105328,-150.0,0.00014999,2]
[356774162,1743155105352,-42.99354554,0.00015,2]
[356774164,1743155144962,-266.2,0.00015,2]
[356774165,1743155145819,-202.672,0.00015,2]
[356774168,1743155164024,-164.13,0.00014999,2]
[356774169,1743155190985,-95.87,0.00014999,2]
[356774170,1743155191010,-9904.13,0.00015,2]
[356774171,1743155191619,-174.05445656,0.00015,2]
[356774172,1743155218685,-196.5371,0.00015,2]
[356774199,1743155431581,-150.0,0.00014999,2]
[356774200,1743155431593,-9008.46,0.00015,2]
[356774201,1743155431745,-1212.17759608,0.00015,2]
[356774202,1743155431801,-75164.03921658,0.00015,2]
[356774203,1743155431811,-601.68,0.00020554,2]
[356774204,1743155431820,-969.27085312,0.00021,2]
[356774205,1743155431829,-1149.58840123,0.00021,2]
[356774206,1743155431839,-189.73386119,0.00021,2]
[356774207,1743155431848,-7280.06317116,0.000217,2]
[356774208,1743155431857,-5434.0,0.000218,2]
[356774209,1743155431866,-150.0,0.00021917,2]
[356774210,1743155431876,-246.62430338,0.00022,2]
[356774211,1743155431886,-500.0,0.00022,2]
[356774212,1743155431896,-1921.64,0.00022039,2]
[356774213,1743155431905,-231.12395517,0.0002211,2]
[356774214,1743155431915,-29312.99,0.00022158,2]
[356774215,1743155431925,-1553.36877746,0.00022462,2]
[356774216,1743155431935,-353.42,0.00022465,2]
[356774217,1743155431944,-174.95257244,0.00022499,2]
[356774218,1743155431953,-186.55377434,0.00022499,2]
[356774219,1743155431962,-34097.76259061,0.000225,2]
[356774220,1743155431971,-4681.27,0.00022562,2]
[356774221,1743155431981,-23900.0,0.00022563,2]
[356774222,1743155431990,-503.02536338,0.0002271,2]
[356774223,1743155431999,-601.68,0.00022818,2]
[356774224,1743155432009,-1000.0,0.00022887,2]
[356774225,1743155432018,-250.0,0.00022959,2]
[356774227,1743155432027,-401.50710601,0.0002301,2]
[356774228,1743155432036,-500.0,0.0002305,2]
[356774229,1743155432045,-1006.17,0.00023175,2]
[356774230,1743155432055,-50131.90845948,0.000232,2]
[356774231,1743155432064,-150.0,0.00023287,2]
[356774232,1743155432074,-2320.21653694,0.0002338,2]
[356774233,1743155432083,-200.0,0.000235,2]
[356774234,1743155432093,-677.00670389,0.0002361,7]
[356774235,1743155432102,-371.99,0.00023836,2]
[356774236,1743155432113,-162.18215288,0.000239,2]
[356774237,1743155432122,-1832.59888788,0.0002392,2]
[356774238,1743155432132,-51525.18999636,0.00024,2]
[356774239,1743155432142,-980.58883054,0.00024,2]
[356774240,1743155432151,-40599.58578112,0.00024,2]
[356774241,1743155432161,-782.64381917,0.0002402,2]
[356774242,1743155432170,-405.16422677,0.0002421,2]
[356774243,1743155432179,-3550.21728756,0.0002421,2]
[356774244,1743155432189,-150.0,0.00024657,2]
[356774245,1743155432198,-1000.0,0.00024658,2]
[356774246,1743155432207,-175.5,0.00024712,30]
[356774247,1743155432216,-35386.0180725,0.000248,2]
[356774248,1743155432226,-151.0,0.0002489,7]
[356774249,1743155432235,-151.0,0.0002489,7]
[356774250,1743155432243,-151.0,0.0002489,7]
[356774251,1743155432253,-151.0,0.0002489,7]
[356774252,1743155432262,-151.0,0.0002489,7]
[356774253,1743155432271,-151.0,0.0002489,7]
[356774254,1743155432282,-250.0,0.00025,2]
[356774255,1743155432293,-601.68,0.00025082,2]
[356774256,1743155432302,-189.88,0.0002509,120]
[356774257,1743155432311,-1553.3687774,0.00025161,2]
[356774258,1743155432320,-500.0,0.0002522,2]
[356774259,1743155432330,-280.0,0.000253,10]
[356774260,1743155432339,-1000.0,0.00025748,2]
[356774261,1743155432348,-1832.59888786,0.00026457,2]
[356774262,1743155432357,-274.485,0.00026741,14]
[356774263,1743155432366,-345.78,0.00026849,2]
[356774264,1743155432375,-151.0,0.00027244,7]
[356774265,1743155432385,-291.433169,0.00027244,7]
[356774266,1743155432394,-291.433169,0.00027244,7]
[356774267,1743155432403,-151.0,0.00027244,7]
[356774268,1743155432412,-151.0,0.00027244,7]
[356774269,1743155432421,-172.995825,0.00027244,7]
[356774270,1743155432431,-151.0,0.00027244,7]
[356774271,1743155432440,-601.68,0.00027346,2]
[356774272,1743155432449,-195.48,0.00027397,2]
[356774273,1743155432458,-151.0,0.00027859,7]
[356774274,1743155432468,-1553.3687774,0.00027859,2]
[356774275,1743155432477,-1000.0,0.00028529,2]
[356774276,1743155432487,-151.0,0.00028599,7]
[356774277,1743155432496,-151.0,0.00028599,7]
[356774278,1743155432505,-151.0,0.00028599,7]
[356774279,1743155432518,-151.0,0.00028599,7]
[356774280,1743155432527,-151.0,0.00028599,7]
[356774281,1743155432536,-151.0,0.00028599,7]
[356774282,1743155432545,-151.0,0.00028609,7]
[356774283,1743155432555,-151.0,0.00028609,7]
[356774284,1743155432564,-1147.921999,0.00028609,7]
[356774285,1743155432573,-1147.921999,0.00028609,7]
[356774286,1743155432583,-1000.0,0.00028609,2]
[356774287,1743155432593,-1832.59888786,0.00028993,2]
[356774288,1743155432602,-601.68,0.00029609,2]